[Event "Live Chess"]
[Site "Chess.com"]
[Date "2024.06.01"]
[Round "-"]
[White "oscalik"]
[Black "CarmelJane"]
[Result "0-1"]
[WhiteElo "2339"]
[BlackElo "2098"]
[TimeControl "300"]
[EndTime "11:34:43 PDT"]
[Termination "CarmelJane won by resignation"]

1. e4 {[%clk 0:04:57.7]} 1... c5 {[%clk 0:04:57.7]} 2. Nc3 {[%clk 0:04:56.4]}
2... e6 {[%clk 0:04:56.4]} 3. f4 {[%clk 0:04:55.9]} 3... a6 {[%clk 0:04:54.3]}
4. Nf3 {[%clk 0:04:55.5]} 4... Nc6 {[%clk 0:04:53.6]} 5. d4 {[%clk 0:04:54.8]}
5... cxd4 {[%clk 0:04:51.6]} 6. Nxd4 {[%clk 0:04:54.7]} 6... Bb4 {[%clk
0:04:38.4]} 7. Nxc6 {[%clk 0:04:50.9]} 7... Bxc3+ {[%clk 0:04:35.1]} 8. bxc3
{[%clk 0:04:49.6]} 8... bxc6 {[%clk 0:04:34.7]} 9. Bd3 {[%clk 0:04:46.4]} 9...
d5 {[%clk 0:04:29.7]} 10. Qf3 {[%clk 0:04:40.7]} 10... Nf6 {[%clk 0:04:26.1]}
11. e5 {[%clk 0:04:38.8]} 11... Nd7 {[%clk 0:04:21.5]} 12. Ba3 {[%clk
0:04:38.7]} 12... c5 {[%clk 0:04:19.2]} 13. O-O {[%clk 0:04:37]} 13... O-O
{[%clk 0:04:12.7]} 14. c4 {[%clk 0:04:35.6]} 14... Bb7 {[%clk 0:04:06.2]} 15.
Rab1 {[%clk 0:04:33.5]} 15... Bc6 {[%clk 0:04:03.7]} 16. Qh3 {[%clk 0:04:31.3]}
16... g6 {[%clk 0:03:58.6]} 17. g4 {[%clk 0:04:27.3]} 17... dxc4 {[%clk
0:03:54.3]} 18. Bxc4 {[%clk 0:04:24.3]} 18... Nb6 {[%clk 0:03:51.2]} 19. Rbd1
{[%clk 0:04:21.1]} 19... Qe7 {[%clk 0:03:46.1]} 20. Bd3 {[%clk 0:04:20.6]} 20...
Nd5 {[%clk 0:03:35.6]} 21. f5 {[%clk 0:04:16.3]} 21... exf5 {[%clk 0:03:30.3]}
22. Rde1 {[%clk 0:04:15.1]} 22... fxg4 {[%clk 0:03:28.2]} 23. Qxg4 {[%clk
0:04:13.8]} 23... Nb4 {[%clk 0:03:12.4]} 24. Bc4 {[%clk 0:04:09.8]} 24... Bd7
{[%clk 0:02:54.6]} 25. Qe4 {[%clk 0:03:52.9]} 25... Qg5+ {[%clk 0:02:45]} 26.
Kh1 {[%clk 0:03:51.3]} 26... Bc6 {[%clk 0:02:44.3]} 27. h4 {[%clk 0:03:37.3]}
27... Bxe4+ {[%clk 0:02:41.5]} 28. Rxe4 {[%clk 0:03:37.2]} 28... Qg3 {[%clk
0:02:31.4]} 29. Bb2 {[%clk 0:03:33.7]} 29... Qh3+ {[%clk 0:01:30]} 30. Kg1
{[%clk 0:03:29.8]} 30... Rae8 {[%clk 0:01:27]} 31. e6 {[%clk 0:03:27.3]} 31...
fxe6 {[%clk 0:01:24.8]} 32. Rxf8+ {[%clk 0:03:25.1]} 32... Kxf8 {[%clk
0:01:24.7]} 33. Rf4+ {[%clk 0:03:18.9]} 33... Ke7 {[%clk 0:01:20.3]} 34. Re4
{[%clk 0:03:14.3]} 34... Qg3+ {[%clk 0:01:18.4]} 35. Kh1 {[%clk 0:03:09.4]}
35... Qf3+ {[%clk 0:01:17.6]} 0-1

[Event "Live Chess"]
[Site "Chess.com"]
[Date "2024.06.01"]
[Round "-"]
[White "dhairyapandyauk"]
[Black "Stanbad1"]
[Result "0-1"]
[WhiteElo "1673"]
[BlackElo "2687"]
[TimeControl "300"]
[EndTime "11:34:44 PDT"]
[Termination "Stanbad1 won by resignation"]

1. e4 {[%clk 0:04:57.9]} 1... e6 {[%clk 0:04:59.2]} 2. d4 {[%clk 0:04:56.6]}
2... d5 {[%clk 0:04:59.1]} 3. exd5 {[%clk 0:04:56.2]} 3... exd5 {[%clk
0:04:58.4]} 4. Bf4 {[%clk 0:04:55.9]} 4... Nc6 {[%clk 0:04:57.3]} 5. c3 {[%clk
0:04:52]} 5... Bd6 {[%clk 0:04:56.6]} 6. Bd3 {[%clk 0:04:51.4]} 6... Bxf4 {[%clk
0:04:55.4]} 7. Ne2 {[%clk 0:04:47.9]} 7... Bd6 {[%clk 0:04:54.1]} 8. Qb3 {[%clk
0:04:46.5]} 8... Nge7 {[%clk 0:04:52.6]} 9. Nd2 {[%clk 0:04:44.5]} 9... O-O
{[%clk 0:04:50.7]} 10. Nf3 {[%clk 0:04:43.7]} 10... Bf5 {[%clk 0:04:41.5]} 11.
Bxf5 {[%clk 0:04:38.9]} 11... Nxf5 {[%clk 0:04:41.4]} 12. Qxd5 {[%clk
0:04:36.9]} 12... g6 {[%clk 0:04:40.3]} 13. Qe4 {[%clk 0:04:28.5]} 13... Re8
{[%clk 0:04:39.1]} 14. Qg4 {[%clk 0:04:26.7]} 14... h5 {[%clk 0:04:37.4]} 15.
Qg5 {[%clk 0:04:24.7]} 15... Qxg5 {[%clk 0:04:34.5]} 16. Nxg5 {[%clk 0:04:24.3]}
16... Ncxd4 {[%clk 0:04:33.4]} 17. cxd4 {[%clk 0:04:22.5]} 17... Nxd4 {[%clk
0:04:33.3]} 18. O-O-O {[%clk 0:04:17.2]} 18... Nxe2+ {[%clk 0:04:30.6]} 19. Kb1
{[%clk 0:04:16.4]} 19... Nf4 {[%clk 0:04:28.9]} 20. g3 {[%clk 0:04:11.6]} 20...
Ne6 {[%clk 0:04:28.5]} 21. Ne4 {[%clk 0:04:10.2]} 21... Be5 {[%clk 0:04:27.4]}
22. f4 {[%clk 0:04:08.5]} 22... Bg7 {[%clk 0:04:25.3]} 23. Rhe1 {[%clk 0:04:07]}
23... Nd4 {[%clk 0:04:23.2]} 24. Re3 {[%clk 0:03:43.7]} 24... f5 {[%clk
0:04:17.5]} 0-1

[Event "Live Chess"]
[Site "Chess.com"]
[Date "2024.06.01"]
[Round "-"]
[White "ACM42"]
[Black "blunderabit"]
[Result "1-0"]
[WhiteElo "2207"]
[BlackElo "1812"]
[TimeControl "300"]
[EndTime "11:34:47 PDT"]
[Termination "ACM42 won by resignation"]

1. e4 {[%clk 0:04:57.7]} 1... c5 {[%clk 0:04:58.3]} 2. Nf3 {[%clk 0:04:55.8]}
2... a6 {[%clk 0:04:56.3]} 3. c4 {[%clk 0:04:54.5]} 3... Nc6 {[%clk 0:04:53.5]}
4. Nc3 {[%clk 0:04:53.7]} 4... e6 {[%clk 0:04:38.7]} 5. d4 {[%clk 0:04:27.5]}
5... cxd4 {[%clk 0:04:37.3]} 6. Nxd4 {[%clk 0:04:19.5]} 6... Qc7 {[%clk
0:04:36.2]} 7. Be3 {[%clk 0:04:10.8]} 7... Nf6 {[%clk 0:04:33.2]} 8. Bd3 {[%clk
0:04:06.8]} 8... Ne5 {[%clk 0:04:19.3]} 9. Rc1 {[%clk 0:04:00.8]} 9... Nxd3+
{[%clk 0:04:14.5]} 10. Qxd3 {[%clk 0:03:59.3]} 10... Be7 {[%clk 0:04:03.5]} 11.
h3 {[%clk 0:03:57.7]} 11... O-O {[%clk 0:04:01.4]} 12. O-O {[%clk 0:03:56.8]}
12... b6 {[%clk 0:03:59.4]} 13. f4 {[%clk 0:03:55.8]} 13... Bb7 {[%clk
0:03:57.8]} 14. e5 {[%clk 0:03:52.8]} 14... Ne8 {[%clk 0:03:51.2]} 15. Ne4
{[%clk 0:03:48.2]} 15... Bxe4 {[%clk 0:03:37.2]} 16. Qxe4 {[%clk 0:03:47]} 16...
f5 {[%clk 0:03:36.2]} 17. Qf3 {[%clk 0:03:42.2]} 17... g6 {[%clk 0:03:23.8]} 18.
Rfd1 {[%clk 0:03:37.4]} 18... Ng7 {[%clk 0:03:18.7]} 19. Qf2 {[%clk 0:03:16.5]}
19... Rab8 {[%clk 0:03:14.1]} 20. a3 {[%clk 0:03:12.7]} 20... Qb7 {[%clk
0:02:56.2]} 21. b4 {[%clk 0:03:10.4]} 21... Qe4 {[%clk 0:02:51.8]} 22. Nb3
{[%clk 0:03:03]} 22... Nh5 {[%clk 0:02:42.1]} 23. Rxd7 {[%clk 0:02:56.8]} 23...
Bh4 {[%clk 0:02:35.1]} 24. Qf3 {[%clk 0:02:47.2]} 24... Qxf3 {[%clk 0:02:26.4]}
25. gxf3 {[%clk 0:02:45.9]} 25... Rf7 {[%clk 0:02:24.3]} 26. Rcd1 {[%clk
0:02:41.4]} 26... Rb7 {[%clk 0:02:17.7]} 27. R7d6 {[%clk 0:02:19.3]} 27... Rfc7
{[%clk 0:01:48.3]} 28. c5 {[%clk 0:02:10.9]} 28... Be7 {[%clk 0:01:28.2]} 29.
Rxe6 {[%clk 0:02:04.2]} 29... bxc5 {[%clk 0:01:11.2]} 30. Nxc5 {[%clk 0:01:52]}
30... Bxc5 {[%clk 0:01:01.7]} 31. Bxc5 {[%clk 0:01:50.8]} 31... Nxf4 {[%clk
0:00:59.3]} 32. Rd8+ {[%clk 0:01:48.7]} 32... Kf7 {[%clk 0:00:22]} 33. Rf6+
{[%clk 0:01:47.4]} 33... Kg7 {[%clk 0:00:17.2]} 34. Bf8+ {[%clk 0:01:46.8]} 1-0

[Event "Live Chess"]
[Site "Chess.com"]
[Date "2024.06.01"]
[Round "-"]
[White "Dhaydon19"]
[Black "OliWally08"]
[Result "1-0"]
[WhiteElo "2682"]
[BlackElo "1274"]
[TimeControl "300"]
[EndTime "11:35:08 PDT"]
[Termination "Dhaydon19 won by resignation"]

1. d4 {[%clk 0:04:58.5]} 1... Nf6 {[%clk 0:04:58.7]} 2. Nf3 {[%clk 0:04:58.1]}
2... e6 {[%clk 0:04:56.1]} 3. g3 {[%clk 0:04:57.8]} 3... d5 {[%clk 0:04:54.2]}
4. Bg2 {[%clk 0:04:57.5]} 4... Bd6 {[%clk 0:04:53.5]} 5. O-O {[%clk 0:04:57.2]}
5... b6 {[%clk 0:04:52.5]} 6. c3 {[%clk 0:04:56.9]} 6... Bb7 {[%clk 0:04:52]} 7.
Qc2 {[%clk 0:04:56.6]} 7... O-O {[%clk 0:04:49.2]} 8. Bg5 {[%clk 0:04:56.2]}
8... h6 {[%clk 0:04:46.3]} 9. Bxf6 {[%clk 0:04:55]} 9... Qxf6 {[%clk 0:04:45.5]}
10. Nbd2 {[%clk 0:04:54.7]} 10... c5 {[%clk 0:04:40.8]} 11. e4 {[%clk
0:04:52.8]} 11... dxe4 {[%clk 0:04:37.5]} 12. Nxe4 {[%clk 0:04:51.5]} 12... Bxe4
{[%clk 0:04:36.1]} 13. Qxe4 {[%clk 0:04:50.6]} 13... Nd7 {[%clk 0:04:33.9]} 14.
Qc6 {[%clk 0:04:49.2]} 14... Qe7 {[%clk 0:04:28.6]} 15. Rfe1 {[%clk 0:04:47.8]}
15... cxd4 {[%clk 0:04:20.8]} 16. Nxd4 {[%clk 0:04:46.2]} 16... Rfc8 {[%clk
0:04:17.7]} 17. Qb5 {[%clk 0:04:42.2]} 17... Bc5 {[%clk 0:04:09.5]} 18. Bxa8
{[%clk 0:04:39.3]} 18... Rxa8 {[%clk 0:04:03.1]} 19. Rad1 {[%clk 0:04:37.5]}
19... Bxd4 {[%clk 0:04:01.1]} 20. Rxd4 {[%clk 0:04:30.8]} 20... Nf6 {[%clk
0:03:59.5]} 21. Red1 {[%clk 0:04:27.1]} 21... Kh7 {[%clk 0:03:56.1]} 22. Qc6
{[%clk 0:04:22]} 22... Nd5 {[%clk 0:03:52.7]} 23. Qxa8 {[%clk 0:04:19.6]} 1-0

[Event "Live Chess"]
[Site "Chess.com"]
[Date "2024.06.01"]
[Round "-"]
[White "Duke_of_Bebington"]
[Black "GerardATHart"]
[Result "0-1"]
[WhiteElo "1609"]
[BlackElo "1426"]
[TimeControl "300"]
[EndTime "11:35:23 PDT"]
[Termination "GerardATHart won on time"]

1. e4 {[%clk 0:04:57.2]} 1... e5 {[%clk 0:04:56.6]} 2. Nf3 {[%clk 0:04:55.2]}
2... Nc6 {[%clk 0:04:53.5]} 3. Bc4 {[%clk 0:04:53.9]} 3... Nf6 {[%clk
0:04:49.1]} 4. O-O {[%clk 0:04:49.9]} 4... Bc5 {[%clk 0:04:45.1]} 5. c3 {[%clk
0:04:49.2]} 5... d6 {[%clk 0:04:43.5]} 6. d4 {[%clk 0:04:43.4]} 6... exd4 {[%clk
0:04:41.7]} 7. cxd4 {[%clk 0:04:42.8]} 7... Bb6 {[%clk 0:04:40]} 8. e5 {[%clk
0:04:35.5]} 8... dxe5 {[%clk 0:04:29.8]} 9. dxe5 {[%clk 0:04:27]} 9... Qxd1
{[%clk 0:04:24]} 10. Rxd1 {[%clk 0:04:26.9]} 10... Ne4 {[%clk 0:04:18.4]} 11.
Be3 {[%clk 0:03:57.3]} 11... Bxe3 {[%clk 0:04:11.7]} 12. fxe3 {[%clk 0:03:56.3]}
12... O-O {[%clk 0:04:03.7]} 13. Nbd2 {[%clk 0:03:39.2]} 13... Nc5 {[%clk
0:03:42.6]} 14. Nb3 {[%clk 0:03:07.3]} 14... Ne6 {[%clk 0:03:29.1]} 15. Nbd4
{[%clk 0:03:00.9]} 15... Na5 {[%clk 0:03:07.3]} 16. Bxe6 {[%clk 0:02:48.9]}
16... Bxe6 {[%clk 0:02:57.2]} 17. Nxe6 {[%clk 0:02:47.8]} 17... fxe6 {[%clk
0:02:54.7]} 18. Rd7 {[%clk 0:02:46.3]} 18... Rac8 {[%clk 0:02:44.2]} 19. Rc1
{[%clk 0:02:39.9]} 19... c5 {[%clk 0:02:35.8]} 20. a3 {[%clk 0:02:35.3]} 20...
Rf7 {[%clk 0:02:30.6]} 21. Rd6 {[%clk 0:02:23.1]} 21... Re7 {[%clk 0:02:14.4]}
22. Ng5 {[%clk 0:02:18.6]} 22... c4 {[%clk 0:02:07]} 23. Rxe6 {[%clk 0:01:45.5]}
23... Rxe6 {[%clk 0:02:01]} 24. Nxe6 {[%clk 0:01:44.8]} 24... Re8 {[%clk
0:01:58.8]} 25. Nd4 {[%clk 0:01:43.1]} 25... Rxe5 {[%clk 0:01:56.5]} 26. Kf2
{[%clk 0:01:41.4]} 26... a6 {[%clk 0:01:53.8]} 27. h3 {[%clk 0:01:34.7]} 27...
b5 {[%clk 0:01:51.6]} 28. g4 {[%clk 0:01:32.2]} 28... Nb7 {[%clk 0:01:45.1]} 29.
Rd1 {[%clk 0:01:20.2]} 29... Nc5 {[%clk 0:01:41.8]} 30. Nc6 {[%clk 0:01:17.8]}
30... Re6 {[%clk 0:01:30.9]} 31. Nb4 {[%clk 0:00:59.1]} 31... a5 {[%clk
0:01:19]} 32. Nc2 {[%clk 0:00:54.4]} 32... Nd3+ {[%clk 0:01:16.8]} 33. Ke2
{[%clk 0:00:51.8]} 33... Nxb2 {[%clk 0:01:15.1]} 34. Nd4 {[%clk 0:00:50.7]}
34... Rb6 {[%clk 0:01:11.7]} 35. Nf5 {[%clk 0:00:48.7]} 35... g6 {[%clk
0:01:09.3]} 36. Rd8+ {[%clk 0:00:47]} 36... Kf7 {[%clk 0:01:07.4]} 37. Rd7+
{[%clk 0:00:46.4]} 37... Ke6 {[%clk 0:01:05.7]} 38. Re7+ {[%clk 0:00:45.6]}
38... Kf6 {[%clk 0:01:02.9]} 39. g5+ {[%clk 0:00:38]} 39... Kxg5 {[%clk
0:01:00.1]} 40. Nd4 {[%clk 0:00:31.1]} 40... Nd3 {[%clk 0:00:52.1]} 41. Rxh7
{[%clk 0:00:29.7]} 41... Rf6 {[%clk 0:00:47.3]} 42. Nf3+ {[%clk 0:00:27.4]}
42... Kf5 {[%clk 0:00:43.8]} 43. Nd4+ {[%clk 0:00:21.7]} 43... Ke4 {[%clk
0:00:39]} 44. Rh4+ {[%clk 0:00:19.4]} 44... Kd5 {[%clk 0:00:37]} 45. Nxb5 {[%clk
0:00:16.1]} 45... Rf2+ {[%clk 0:00:34.7]} 46. Kd1 {[%clk 0:00:13.6]} 46... Nb2+
{[%clk 0:00:29.9]} 47. Kc1 {[%clk 0:00:12.4]} 47... Nd3+ {[%clk 0:00:28.2]} 48.
Kd1 {[%clk 0:00:11.3]} 48... Rh2 {[%clk 0:00:26.8]} 49. Nc3+ {[%clk 0:00:09.7]}
49... Ke5 {[%clk 0:00:24.6]} 50. Rxc4 {[%clk 0:00:08.5]} 50... Nf2+ {[%clk
0:00:23.2]} 51. Kc2 {[%clk 0:00:07.8]} 51... Rxh3 {[%clk 0:00:20.3]} 52. Kb3
{[%clk 0:00:04.5]} 52... Rxe3 {[%clk 0:00:18.5]} 53. Rc5+ {[%clk 0:00:03.3]}
53... Kd4 {[%clk 0:00:16.4]} 54. Rc8 {[%clk 0:00:01.3]} 54... Rxc3+ {[%clk
0:00:14.8]} 0-1

[Event "Live Chess"]
[Site "Chess.com"]
[Date "2024.06.01"]
[Round "-"]
[White "sebmoran1"]
[Black "Nazar-Makarchuk"]
[Result "0-1"]
[WhiteElo "1472"]
[BlackElo "1569"]
[TimeControl "300"]
[EndTime "11:35:31 PDT"]
[Termination "Nazar-Makarchuk won by resignation"]

1. d4 {[%clk 0:04:57.4]} 1... d5 {[%clk 0:04:59.2]} 2. c4 {[%clk 0:04:53.5]}
2... Nf6 {[%clk 0:04:57.5]} 3. cxd5 {[%clk 0:04:51.1]} 3... Qxd5 {[%clk
0:04:56.3]} 4. Nc3 {[%clk 0:04:51]} 4... Qd8 {[%clk 0:04:55.2]} 5. Nf3 {[%clk
0:04:48.9]} 5... e6 {[%clk 0:04:54.7]} 6. Bg5 {[%clk 0:04:48]} 6... Be7 {[%clk
0:04:53.5]} 7. e3 {[%clk 0:04:46.5]} 7... c5 {[%clk 0:04:52.5]} 8. Bb5+ {[%clk
0:04:44.4]} 8... Bd7 {[%clk 0:04:51.3]} 9. Bxd7+ {[%clk 0:04:43.5]} 9... Qxd7
{[%clk 0:04:50.9]} 10. dxc5 {[%clk 0:04:41.8]} 10... Qxd1+ {[%clk 0:04:49.5]}
11. Rxd1 {[%clk 0:04:41.7]} 11... Bxc5 {[%clk 0:04:47.9]} 12. Bxf6 {[%clk
0:04:40.6]} 12... gxf6 {[%clk 0:04:46.7]} 13. Ne4 {[%clk 0:04:39]} 13... Be7
{[%clk 0:04:45]} 14. Ke2 {[%clk 0:04:34.2]} 14... Nc6 {[%clk 0:04:44.2]} 15. a3
{[%clk 0:04:31.3]} 15... Ne5 {[%clk 0:04:43.4]} 16. Nxe5 {[%clk 0:04:30.1]}
16... fxe5 {[%clk 0:04:42.9]} 17. Rc1 {[%clk 0:04:27]} 17... O-O {[%clk
0:04:40.6]} 18. Rc7 {[%clk 0:04:24.8]} 18... Bd8 {[%clk 0:04:33]} 19. Rxb7
{[%clk 0:04:23.2]} 19... a5 {[%clk 0:04:31.2]} 20. h4 {[%clk 0:04:17.8]} 20...
Re8 {[%clk 0:04:30.3]} 21. h5 {[%clk 0:04:14.1]} 21... Re7 {[%clk 0:04:29.6]}
22. Rxe7 {[%clk 0:04:10]} 22... Bxe7 {[%clk 0:04:28.8]} 23. Rd1 {[%clk
0:04:07.1]} 23... Rb8 {[%clk 0:04:25.7]} 24. Rb1 {[%clk 0:03:58.9]} 24... Bxa3
{[%clk 0:04:19.7]} 25. Nf6+ {[%clk 0:03:52.7]} 25... Kg7 {[%clk 0:04:17.7]} 26.
Nd7 {[%clk 0:03:50.8]} 26... Rxb2+ {[%clk 0:04:16]} 27. Rxb2 {[%clk 0:03:47.2]}
27... Bxb2 {[%clk 0:04:15.5]} 28. Kd3 {[%clk 0:03:46.2]} 28... a4 {[%clk
0:04:14.3]} 29. Nc5 {[%clk 0:03:27.7]} 29... a3 {[%clk 0:04:13.2]} 30. Nb3
{[%clk 0:03:24.7]} 30... a2 {[%clk 0:04:11.9]} 31. g4 {[%clk 0:03:13.5]} 31...
a1=Q {[%clk 0:04:10.6]} 32. Nxa1 {[%clk 0:03:12.6]} 32... Bxa1 {[%clk
0:04:10.3]} 33. Ke4 {[%clk 0:03:11.9]} 33... Kf6 {[%clk 0:04:08.9]} 34. f4
{[%clk 0:03:10.1]} 34... exf4 {[%clk 0:04:07.9]} 35. exf4 {[%clk 0:03:10]} 35...
Bb2 {[%clk 0:04:05.8]} 36. g5+ {[%clk 0:03:06.1]} 36... Ke7 {[%clk 0:04:04.4]}
37. f5 {[%clk 0:03:04]} 37... e5 {[%clk 0:03:55.4]} 38. g6 {[%clk 0:02:18.7]}
38... fxg6 {[%clk 0:03:53.1]} 39. hxg6 {[%clk 0:02:17.1]} 39... hxg6 {[%clk
0:03:52.3]} 40. fxg6 {[%clk 0:02:15.2]} 40... Kf6 {[%clk 0:03:51.6]} 0-1

[Event "Live Chess"]
[Site "Chess.com"]
[Date "2024.06.01"]
[Round "-"]
[White "chess5013"]
[Black "elephantgerrald"]
[Result "1-0"]
[WhiteElo "1282"]
[BlackElo "754"]
[TimeControl "300"]
[EndTime "11:35:34 PDT"]
[Termination "chess5013 won by checkmate"]

1. d4 {[%clk 0:04:58.1]} 1... d5 {[%clk 0:04:59]} 2. Bf4 {[%clk 0:04:57.3]} 2...
Nc6 {[%clk 0:04:58.4]} 3. e3 {[%clk 0:04:56.8]} 3... Nf6 {[%clk 0:04:57.4]} 4.
c3 {[%clk 0:04:56.4]} 4... Bf5 {[%clk 0:04:56.9]} 5. Nf3 {[%clk 0:04:53.6]} 5...
Bxb1 {[%clk 0:04:55.9]} 6. Rxb1 {[%clk 0:04:48.3]} 6... e6 {[%clk 0:04:55.5]} 7.
Bd3 {[%clk 0:04:46.4]} 7... g6 {[%clk 0:04:54.2]} 8. Qc2 {[%clk 0:04:45.2]} 8...
Bg7 {[%clk 0:04:43.8]} 9. Ne5 {[%clk 0:04:38.7]} 9... O-O {[%clk 0:04:40.5]} 10.
h4 {[%clk 0:04:36.5]} 10... Re8 {[%clk 0:04:07.2]} 11. g4 {[%clk 0:04:30.7]}
11... h6 {[%clk 0:03:46.3]} 12. h5 {[%clk 0:04:22.9]} 12... Re7 {[%clk
0:03:02.7]} 13. hxg6 {[%clk 0:04:19.9]} 13... Nxe5 {[%clk 0:02:52.1]} 14. Bxe5
{[%clk 0:04:07.6]} 14... Nxg4 {[%clk 0:02:49.3]} 15. gxf7+ {[%clk 0:04:04.8]}
15... Rxf7 {[%clk 0:01:43.3]} 16. f4 {[%clk 0:03:54.6]} 16... Nxe3 {[%clk
0:01:32.6]} 17. Qe2 {[%clk 0:03:43.8]} 17... Nf5 {[%clk 0:01:26.9]} 18. Rg1
{[%clk 0:03:27]} 18... Qh4+ {[%clk 0:01:18.8]} 19. Kd2 {[%clk 0:03:23.1]} 19...
Ng3 {[%clk 0:01:13]} 20. Qg2 {[%clk 0:03:09.8]} 20... Bxe5 {[%clk 0:01:05.9]}
21. dxe5 {[%clk 0:03:03.5]} 21... Qxf4+ {[%clk 0:01:03]} 22. Kc2 {[%clk
0:02:59.6]} 22... Rf5 {[%clk 0:00:36.9]} 23. Qxg3+ {[%clk 0:02:54]} 23... Kh7
{[%clk 0:00:34.7]} 24. Qxf4 {[%clk 0:02:50.6]} 24... Rf8 {[%clk 0:00:30.5]} 25.
Bxf5+ {[%clk 0:02:49.3]} 25... Rxf5 {[%clk 0:00:29]} 26. Qg4 {[%clk 0:02:48.4]}
26... Rf2+ {[%clk 0:00:27.2]} 27. Kb3 {[%clk 0:02:46.6]} 27... Rf7 {[%clk
0:00:23.5]} 28. Qg6+ {[%clk 0:02:44.9]} 28... Kh8 {[%clk 0:00:19]} 29. Qg8#
{[%clk 0:02:43.7]} 1-0

[Event "Live Chess"]
[Site "Chess.com"]
[Date "2024.06.01"]
[Round "-"]
[White "DoctorMantisTobogganMD"]
[Black "Ferrarifan27"]
[Result "0-1"]
[WhiteElo "2197"]
[BlackElo "2066"]
[TimeControl "300"]
[EndTime "11:35:41 PDT"]
[Termination "Ferrarifan27 won by resignation"]

1. e4 {[%clk 0:04:59]} 1... c5 {[%clk 0:04:44.9]} 2. Nc3 {[%clk 0:04:57.6]} 2...
Nc6 {[%clk 0:04:42]} 3. Bb5 {[%clk 0:04:56.6]} 3... a6 {[%clk 0:04:40.1]} 4.
Bxc6 {[%clk 0:04:55.8]} 4... dxc6 {[%clk 0:04:40]} 5. d3 {[%clk 0:04:55.5]} 5...
g6 {[%clk 0:04:38.6]} 6. f4 {[%clk 0:04:54.5]} 6... Bg7 {[%clk 0:04:37.8]} 7.
Nf3 {[%clk 0:04:54.1]} 7... Bg4 {[%clk 0:04:34.2]} 8. O-O {[%clk 0:04:53.2]}
8... Nf6 {[%clk 0:04:32.6]} 9. Qe1 {[%clk 0:04:52]} 9... O-O {[%clk 0:04:29.2]}
10. h3 {[%clk 0:04:50]} 10... Bxf3 {[%clk 0:04:23.2]} 11. Rxf3 {[%clk
0:04:49.9]} 11... e6 {[%clk 0:04:20.7]} 12. Be3 {[%clk 0:04:47]} 12... b6 {[%clk
0:04:18]} 13. a4 {[%clk 0:04:42.5]} 13... a5 {[%clk 0:04:15.4]} 14. Qf2 {[%clk
0:04:39.1]} 14... Re8 {[%clk 0:03:58.1]} 15. f5 {[%clk 0:04:32.7]} 15... exf5
{[%clk 0:03:57.2]} 16. exf5 {[%clk 0:04:31.8]} 16... Nd5 {[%clk 0:03:47.6]} 17.
Nxd5 {[%clk 0:04:27.8]} 17... cxd5 {[%clk 0:03:45.7]} 18. fxg6 {[%clk
0:04:26.3]} 18... fxg6 {[%clk 0:03:44.9]} 19. c3 {[%clk 0:04:21.1]} 19... Rf8
{[%clk 0:03:40.9]} 20. Rf1 {[%clk 0:04:12.1]} 20... Rxf3 {[%clk 0:03:38.7]} 21.
Qxf3 {[%clk 0:04:12]} 21... Qd7 {[%clk 0:03:37.5]} 22. Bg5 {[%clk 0:03:49.8]}
22... Rf8 {[%clk 0:03:31.9]} 23. Qe2 {[%clk 0:03:48.3]} 23... Rxf1+ {[%clk
0:03:30]} 24. Qxf1 {[%clk 0:03:47.3]} 24... Qxa4 {[%clk 0:03:19]} 25. Qe2 {[%clk
0:03:38.9]} 25... Qd7 {[%clk 0:03:14.5]} 26. Bf4 {[%clk 0:03:32.9]} 26... a4
{[%clk 0:03:06]} 27. c4 {[%clk 0:03:13.7]} 27... dxc4 {[%clk 0:02:59.6]} 28.
dxc4 {[%clk 0:03:13.6]} 28... Qd4+ {[%clk 0:02:54.4]} 29. Kh1 {[%clk 0:03:11.9]}
29... Qxf4 {[%clk 0:02:52.3]} 30. Qe8+ {[%clk 0:03:10.8]} 30... Qf8 {[%clk
0:02:50.7]} 31. Qe6+ {[%clk 0:03:10]} 31... Kh8 {[%clk 0:02:48.7]} 0-1